[Event "Championnat d'Europe Rapide"]
[Date "2024.12.07"]
[White "Bernadskiy, Vitaliy"]
[Black "Ghimpu, Samuel-Timotei"]
[WhiteElo "2546"]
[BlackElo "2475"]
[Round "6.18"]
[Result "1/2-1/2"]
[TimeControl "900+10"]

1. d4 {[%emt 00:00:02] [%clk 00:15:17]} Nf6 {[%emt 00:00:20] [%clk 00:15:01]} 2.
Nf3 {[%emt 00:00:02] [%clk 00:15:25]} d5 {[%emt 00:00:10] [%clk 00:15:00]} 3.
Bf4 {[%emt 00:00:02] [%clk 00:15:33]} Bf5 {[%emt 00:02:28] [%clk 00:12:42]} 4.
e3 {[%emt 00:00:03] [%clk 00:15:41]} e6 {[%emt 00:00:12] [%clk 00:12:40]} 5. Bd3
{[%emt 00:00:14] [%clk 00:15:37]} Bxd3 {[%emt 00:00:22] [%clk 00:12:28]} 6. Qxd3
{[%emt 00:00:03] [%clk 00:15:44]} Nbd7 {[%emt 00:01:46] [%clk 00:10:52]} 7. Nbd2
{[%emt 00:00:19] [%clk 00:15:35]} Bd6 {[%emt 00:00:29] [%clk 00:10:33]} 8. O-O
{[%emt 00:01:35] [%clk 00:14:09]} Bxf4 {[%emt 00:00:22] [%clk 00:10:22]} 9. exf4
{[%emt 00:00:02] [%clk 00:14:17]} O-O {[%emt 00:00:04] [%clk 00:10:28]} 10. Rfe1
{[%emt 00:00:20] [%clk 00:14:07]} g6 {[%emt 00:01:05] [%clk 00:09:33]} 11. Ne5
{[%emt 00:00:15] [%clk 00:14:02]} c5 {[%emt 00:00:19] [%clk 00:09:24]} 12. dxc5
{[%emt 00:01:02] [%clk 00:13:10]} Nxc5 {[%emt 00:00:12] [%clk 00:09:22]} 13. Qd4
{[%emt 00:00:01] [%clk 00:13:19]} Rc8 {[%emt 00:00:22] [%clk 00:09:10]} 14. Re2
{[%emt 00:02:10] [%clk 00:11:18]} Qb6 {[%emt 00:02:38] [%clk 00:06:43]} 15. Ndf3
{[%emt 00:01:28] [%clk 00:10:00]} Ncd7 {[%emt 00:00:46] [%clk 00:06:07]} 16.
Qxb6 {[%emt 00:03:15] [%clk 00:06:55]} Nxb6 {[%emt 00:00:05] [%clk 00:06:12]}
17. a4 {[%emt 00:00:02] [%clk 00:07:03]} Nc4 {[%emt 00:01:45] [%clk 00:04:36]}
18. c3 {[%emt 00:00:07] [%clk 00:07:07]} a5 {[%emt 00:00:33] [%clk 00:04:14]}
19. Nd4 {[%emt 00:00:21] [%clk 00:06:55]} Ne4 {[%emt 00:00:15] [%clk 00:04:08]}
20. f3 {[%emt 00:00:54] [%clk 00:06:12]} Nc5 {[%emt 00:00:27] [%clk 00:03:51]}
21. h4 {[%emt 00:02:06] [%clk 00:04:16]} Rfe8 {[%emt 00:01:36] [%clk 00:02:26]}
22. b3 {[%emt 00:00:49] [%clk 00:03:37]} Nd6 {[%emt 00:00:37] [%clk 00:01:58]}
23. b4 {[%emt 00:00:16] [%clk 00:03:31]} Na6 {[%emt 00:00:06] [%clk 00:02:02]}
24. bxa5 {[%emt 00:00:41] [%clk 00:03:01]} Red8 {[%emt 00:00:56] [%clk
00:01:15]} 25. Rb1 {[%emt 00:00:37] [%clk 00:02:34]} Nc5 {[%emt 00:00:26] [%clk
00:01:00]} 26. Nb5 {[%emt 00:01:12] [%clk 00:01:32]} Nc4 {[%emt 00:00:42] [%clk
00:00:28]} 27. Nxc4 {[%emt 00:00:46] [%clk 00:00:56]} dxc4 {[%emt 00:00:01]
[%clk 00:00:36]} 28. Na3 {[%clk 00:01:05]} Nb3 {[%emt 00:00:32] [%clk 00:00:15]}
29. Nxc4 {[%emt 00:00:12] [%clk 00:01:03]} Nc1 {[%emt 00:00:12] [%clk 00:00:13]}
30. Rxc1 {[%emt 00:00:48] [%clk 00:00:24]} Rxc4 {[%emt 00:00:02] [%clk
00:00:21]} 31. Re4 {[%emt 00:00:03] [%clk 00:00:31]} Rc5 {[%emt 00:00:02] [%clk
00:00:30]} 32. Rb1 {[%emt 00:00:16] [%clk 00:00:24]} Rd7 {[%emt 00:00:07] [%clk
00:00:33]} 33. Reb4 {[%emt 00:00:08] [%clk 00:00:26]} Rxa5 {[%emt 00:00:12]
[%clk 00:00:31]} 34. Rxb7 {[%emt 00:00:03] [%clk 00:00:34]} Rxb7 {[%emt
00:00:08] [%clk 00:00:32]} 35. Rxb7 {[%emt 00:00:02] [%clk 00:00:42]} Rxa4
{[%emt 00:00:01] [%clk 00:00:41]} 36. Rb4 {[%emt 00:00:02] [%clk 00:00:51]} Ra1+
{[%emt 00:00:05] [%clk 00:00:45]} 37. Kf2 {[%emt 00:00:01] [%clk 00:00:59]} Ra2+
{[%emt 00:00:02] [%clk 00:00:53]} 38. Kg3 {[%emt 00:00:02] [%clk 00:01:08]} Rc2
{[%emt 00:00:07] [%clk 00:00:56]} 39. Rc4 {[%emt 00:00:02] [%clk 00:01:17]} h5
{[%emt 00:00:03] [%clk 00:01:02]} 40. Rc7 {[%emt 00:00:03] [%clk 00:01:24]} Kg7
{[%emt 00:00:04] [%clk 00:01:08]} 41. Kh3 {[%emt 00:00:02] [%clk 00:01:32]} Rf2
{[%emt 00:00:37] [%clk 00:00:41]} 42. c4 {[%emt 00:00:20] [%clk 00:01:22]} Rc2
{[%emt 00:00:07] [%clk 00:00:44]} 43. g4 {[%emt 00:00:02] [%clk 00:01:30]} Rc3
{[%emt 00:00:05] [%clk 00:00:49]} 44. gxh5 {[%emt 00:00:04] [%clk 00:01:36]}
gxh5 {[%emt 00:00:02] [%clk 00:00:57]} 45. Kg3 {[%emt 00:00:03] [%clk 00:01:43]}
Rc2 {[%emt 00:00:09] [%clk 00:00:58]} 46. f5 {[%emt 00:00:22] [%clk 00:01:31]}
e5 {[%emt 00:00:04] [%clk 00:01:04]} 47. Rc6 {[%emt 00:00:18] [%clk 00:01:23]}
f6 {[%emt 00:00:24] [%clk 00:00:50]} 48. Rc7+ {[%emt 00:00:02] [%clk 00:01:31]}
Kg8 {[%emt 00:00:18] [%clk 00:00:42]} 49. c5 {[%emt 00:00:04] [%clk 00:01:37]}
Kf8 {[%emt 00:00:13] [%clk 00:00:38]} 50. c6 {[%emt 00:00:48] [%clk 00:01:00]}
Kg8 {[%emt 00:00:04] [%clk 00:00:44]} 51. Rc8+ {[%emt 00:00:18] [%clk 00:00:52]}
Kf7 {[%emt 00:00:06] [%clk 00:00:48]} 52. Kh3 {[%emt 00:00:14] [%clk 00:00:48]}
Kg7 {[%emt 00:00:13] [%clk 00:00:45]} 53. c7 {[%emt 00:00:02] [%clk 00:00:56]}
Kh7 {[%emt 00:00:36] [%clk 00:00:19]} 54. Rf8 {[%emt 00:00:02] [%clk 00:01:03]}
Rxc7 {[%emt 00:00:02] [%clk 00:00:27]} 55. Rxf6 {[%emt 00:00:02] [%clk
00:01:12]} Rc4 {[%emt 00:00:02] [%clk 00:00:36]} 56. Rg6 {[%emt 00:00:38] [%clk
00:00:43]} Rf4 {[%emt 00:00:20] [%clk 00:00:26]} 57. Rg5 {[%emt 00:00:17] [%clk
00:00:36]} Rxf3+ {[%emt 00:00:05] [%clk 00:00:31]} 58. Kg2 {[%emt 00:00:02]
[%clk 00:00:44]} Rf4 {[%emt 00:00:02] [%clk 00:00:39]} 59. Rxh5+ {[%emt
00:00:02] [%clk 00:00:52]} Kg7 {[%clk 00:00:48]} 60. Kg3 {[%emt 00:00:24] [%clk
00:00:40]} Kf6 {[%clk 00:00:56]} 61. Rh8 {[%emt 00:00:06] [%clk 00:00:44]} Kxf5
{[%emt 00:00:05] [%clk 00:01:01]} 62. Rf8+ {[%emt 00:00:04] [%clk 00:00:50]} Kg6
{[%clk 00:01:09]} 63. Rxf4 {[%emt 00:00:08] [%clk 00:00:53]} exf4+ {[%emt
00:00:01] [%clk 00:01:18]} 64. Kxf4 {[%emt 00:00:02] [%clk 00:01:01]} Kh5 {[%clk
00:01:27]} 65. Kf5 {[%emt 00:00:02] [%clk 00:01:10]} Kxh4 {[%emt 00:00:01]} 66.
Ke4 {[%emt 00:00:02] [%clk 00:01:10]} 1/2-1/2

[Site "Europe Echecs"]

[Event "Championnat d'Europe Rapide"]
[Date "2024.12.07"]
[White "Fridman, Daniel"]
[Black "Vuckovic, Zarko"]
[WhiteElo "2571"]
[BlackElo "2334"]
[Round "6.19"]
[Result "1/2-1/2"]
[TimeControl "900+10"]

1. d4 {[%emt 00:00:01] [%clk 00:15:17]} Nf6 {[%emt 00:00:49] [%clk 00:14:32]} 2.
Nf3 {[%emt 00:00:02] [%clk 00:15:25]} d5 {[%emt 00:00:01] [%clk 00:14:41]} 3. c4
{[%emt 00:00:03] [%clk 00:15:32]} e6 {[%emt 00:00:01] [%clk 00:14:50]} 4. g3
{[%emt 00:00:02] [%clk 00:15:40]} Bb4+ {[%emt 00:00:01] [%clk 00:14:59]} 5. Nc3
{[%emt 00:00:06] [%clk 00:15:44]} O-O {[%emt 00:00:37] [%clk 00:14:33]} 6. Bg2
{[%emt 00:00:01] [%clk 00:15:52]} c5 {[%emt 00:01:07] [%clk 00:13:37]} 7. O-O
{[%emt 00:02:29] [%clk 00:13:32]} cxd4 {[%emt 00:00:17] [%clk 00:13:29]} 8. Nxd4
{[%emt 00:00:04] [%clk 00:13:38]} dxc4 {[%emt 00:00:09] [%clk 00:13:31]} 9. Ndb5
{[%emt 00:00:49] [%clk 00:12:58]} Nc6 {[%emt 00:01:12] [%clk 00:12:30]} 10. Qa4
{[%emt 00:00:18] [%clk 00:12:49]} Qa5 {[%emt 00:01:58] [%clk 00:10:42]} 11. Qxa5
{[%emt 00:00:14] [%clk 00:12:45]} Bxa5 {[%emt 00:00:10] [%clk 00:10:43]} 12. Rd1
{[%emt 00:01:40] [%clk 00:11:15]} e5 {[%emt 00:00:56] [%clk 00:09:57]} 13. Nd6
{[%emt 00:01:19] [%clk 00:10:06]} Nd4 {[%emt 00:00:24] [%clk 00:09:43]} 14. Bd2
{[%emt 00:00:52] [%clk 00:09:24]} Be6 {[%emt 00:01:31] [%clk 00:08:22]} 15. Nxb7
{[%emt 00:00:14] [%clk 00:09:19]} Bb6 {[%emt 00:00:11] [%clk 00:08:22]} 16. e3
{[%emt 00:00:18] [%clk 00:09:11]} Nc2 {[%emt 00:00:11] [%clk 00:08:20]} 17. Rab1
{[%emt 00:00:20] [%clk 00:09:02]} Rab8 {[%emt 00:00:58] [%clk 00:07:33]} 18. Ne4
{[%emt 00:01:11] [%clk 00:08:00]} Nxe4 {[%emt 00:00:55] [%clk 00:06:48]} 19.
Bxe4 {[%emt 00:00:02] [%clk 00:08:08]} f5 {[%emt 00:00:02] [%clk 00:06:56]} 20.
Bxc2 {[%emt 00:00:42] [%clk 00:07:35]} Rxb7 {[%emt 00:00:02] [%clk 00:07:04]}
21. Bb4 {[%emt 00:01:09] [%clk 00:06:37]} Rc8 {[%emt 00:00:12] [%clk 00:07:02]}
22. Bc3 {[%emt 00:00:03] [%clk 00:06:44]} e4 {[%emt 00:01:40] [%clk 00:05:32]}
23. Rd2 {[%emt 00:00:27] [%clk 00:06:27]} Kf7 {[%emt 00:00:46] [%clk 00:04:56]}
24. Rbd1 {[%emt 00:01:42] [%clk 00:04:55]} Bc5 {[%emt 00:00:04] [%clk 00:05:02]}
25. Ba4 {[%emt 00:00:27] [%clk 00:04:39]} Be7 {[%emt 00:01:28] [%clk 00:03:43]}
26. Bd7 {[%emt 00:00:30] [%clk 00:04:19]} Bxd7 {[%emt 00:00:13] [%clk 00:03:40]}
27. Rxd7 {[%emt 00:00:01] [%clk 00:04:27]} Rcc7 {[%emt 00:00:01] [%clk
00:03:49]} 28. Rxc7 {[%emt 00:01:05] [%clk 00:03:33]} Rxc7 {[%emt 00:00:02]
[%clk 00:03:58]} 29. g4 {[%emt 00:00:12] [%clk 00:03:31]} fxg4 {[%emt 00:00:13]
[%clk 00:03:54]} 30. Rd4 {[%emt 00:00:02] [%clk 00:03:39]} Bf6 {[%emt 00:00:21]
[%clk 00:03:42]} 31. Rxe4 {[%emt 00:00:02] [%clk 00:03:48]} h5 {[%emt 00:00:01]
[%clk 00:03:51]} 32. Kg2 {[%emt 00:00:07] [%clk 00:03:51]} Rc5 {[%emt 00:00:06]
[%clk 00:03:55]} 33. Rf4 {[%emt 00:00:37] [%clk 00:03:23]} Ke6 {[%emt 00:00:06]
[%clk 00:03:59]} 34. a4 {[%emt 00:01:14] [%clk 00:02:20]} a6 {[%emt 00:00:46]
[%clk 00:03:23]} 35. Kg3 {[%emt 00:00:16] [%clk 00:02:14]} Bd8 {[%emt 00:01:23]
[%clk 00:02:10]} 36. Re4+ {[%emt 00:00:36] [%clk 00:01:49]} Kf7 {[%emt 00:00:01]
[%clk 00:02:19]} 37. Kg2 {[%emt 00:00:29] [%clk 00:01:30]} Bc7 {[%emt 00:00:10]
[%clk 00:02:18]} 38. Bb4 {[%emt 00:00:11] [%clk 00:01:29]} Rc6 {[%emt 00:00:06]
[%clk 00:02:23]} 39. Re7+ {[%emt 00:00:04] [%clk 00:01:35]} Kf6 {[%emt 00:00:29]
[%clk 00:02:03]} 40. Rd7 {[%emt 00:00:04] [%clk 00:01:41]} g6 {[%emt 00:00:10]
[%clk 00:02:03]} 41. Bc3+ {[%emt 00:00:07] [%clk 00:01:44]} Kf5 {[%emt 00:00:02]
[%clk 00:02:11]} 42. h3 {[%emt 00:00:26] [%clk 00:01:28]} gxh3+ {[%emt 00:01:02]
[%clk 00:01:20]} 43. Kxh3 {[%emt 00:00:01] [%clk 00:01:37]} g5 {[%emt 00:00:01]
[%clk 00:01:29]} 44. Rd5+ {[%emt 00:00:25] [%clk 00:01:20]} Kg6 {[%emt 00:00:04]
[%clk 00:01:36]} 45. f3 {[%clk 00:01:29]} Bd6 {[%emt 00:00:39] [%clk 00:01:07]}
46. Bd2 {[%emt 00:00:24] [%clk 00:01:16]} Be7 {[%emt 00:00:09] [%clk 00:01:06]}
47. Bc3 {[%emt 00:00:09] [%clk 00:01:18]} Rd6 {[%emt 00:00:27] [%clk 00:00:49]}
48. Rc5 {[%emt 00:00:28] [%clk 00:00:59]} Re6 {[%emt 00:00:07] [%clk 00:00:53]}
49. Rxc4 {[%emt 00:00:16] [%clk 00:00:52]} Rxe3 {[%emt 00:00:02] [%clk
00:01:02]} 50. Kg2 {[%emt 00:00:07] [%clk 00:00:55]} Re2+ {[%emt 00:00:02] [%clk
00:01:11]} 51. Kf1 {[%emt 00:00:03] [%clk 00:01:01]} Re6 {[%emt 00:00:02] [%clk
00:01:19]} 52. b4 {[%emt 00:00:14] [%clk 00:00:57]} Kf5 {[%emt 00:00:09] [%clk
00:01:21]} 53. Bd4 {[%emt 00:00:31] [%clk 00:00:36]} Bf6 {[%emt 00:01:11] [%clk
00:00:20]} 54. b5 {[%emt 00:00:24] [%clk 00:00:22]} axb5 {[%emt 00:00:02] [%clk
00:00:28]} 55. axb5 {[%emt 00:00:01] [%clk 00:00:30]} Bxd4 {[%emt 00:00:10]
[%clk 00:00:28]} 56. Rxd4 {[%emt 00:00:01] [%clk 00:00:39]} Rb6 {[%emt 00:00:01]
[%clk 00:00:37]} 57. Rb4 {[%emt 00:00:01] [%clk 00:00:48]} Ke5 {[%emt 00:00:08]
[%clk 00:00:39]} 58. Kf2 {[%emt 00:00:20] [%clk 00:00:38]} Kd5 {[%emt 00:00:03]
[%clk 00:00:46]} 59. Rb1 {[%emt 00:00:08] [%clk 00:00:40]} Kc4 {[%emt 00:00:06]
[%clk 00:00:50]} 60. Rh1 {[%emt 00:00:02] [%clk 00:00:47]} h4 {[%emt 00:00:04]
[%clk 00:00:57]} 61. f4 {[%emt 00:00:04] [%clk 00:00:53]} gxf4 {[%emt 00:00:04]
[%clk 00:00:52]} 1/2-1/2

[Site "Europe Echecs"]

[Event "Championnat d'Europe Rapide"]
[Date "2024.12.07"]
[White "Grigoriants, Sergey"]
[Black "Koelle, Tobias"]
[WhiteElo "2542"]
[BlackElo "2437"]
[Round "6.20"]
[Result "1-0"]
[TimeControl "900+10"]

1. d4 {[%emt 00:00:02] [%clk 00:15:17]} Nf6 {[%emt 00:00:55] [%clk 00:14:26]} 2.
c4 {[%emt 00:00:05] [%clk 00:15:22]} e6 {[%emt 00:00:02] [%clk 00:14:34]} 3. Nc3
{[%emt 00:00:09] [%clk 00:15:23]} Bb4 {[%emt 00:00:02] [%clk 00:14:41]} 4. e3
{[%emt 00:00:05] [%clk 00:15:29]} O-O {[%emt 00:00:03] [%clk 00:14:47]} 5. Bd3
{[%emt 00:00:21] [%clk 00:15:20]} d5 {[%emt 00:00:05] [%clk 00:14:51]} 6. a3
{[%emt 00:00:27] [%clk 00:15:03]} Bxc3+ {[%emt 00:00:07] [%clk 00:14:54]} 7.
bxc3 {[%emt 00:00:02] [%clk 00:15:11]} dxc4 {[%emt 00:00:01] [%clk 00:15:03]} 8.
Bxc4 {[%emt 00:00:04] [%clk 00:15:18]} c5 {[%emt 00:00:01] [%clk 00:15:11]} 9.
Ne2 {[%emt 00:00:09] [%clk 00:15:19]} Qc7 {[%emt 00:00:03] [%clk 00:15:18]} 10.
Ba2 {[%emt 00:00:18] [%clk 00:15:12]} b6 {[%emt 00:00:56] [%clk 00:14:31]} 11.
O-O {[%emt 00:00:21] [%clk 00:15:01]} Bb7 {[%emt 00:00:26] [%clk 00:14:14]} 12.
Ng3 {[%emt 00:03:07] [%clk 00:12:05]} Nbd7 {[%emt 00:00:57] [%clk 00:13:27]} 13.
Qe2 {[%emt 00:00:37] [%clk 00:11:38]} a5 {[%emt 00:01:28] [%clk 00:12:09]} 14.
Re1 {[%emt 00:01:20] [%clk 00:10:28]} Ba6 {[%emt 00:00:33] [%clk 00:11:46]} 15.
Qb2 {[%emt 00:01:24] [%clk 00:09:15]} h5 {[%emt 00:03:25] [%clk 00:08:29]} 16.
h4 {[%emt 00:00:18] [%clk 00:09:09]} Rfc8 {[%emt 00:02:27] [%clk 00:06:11]} 17.
e4 {[%emt 00:00:21] [%clk 00:08:58]} e5 {[%emt 00:02:50] [%clk 00:03:31]} 18.
Bg5 {[%emt 00:01:27] [%clk 00:07:41]} c4 {[%emt 00:00:36] [%clk 00:03:05]} 19.
a4 {[%emt 00:01:42] [%clk 00:06:10]} g6 {[%emt 00:00:45] [%clk 00:02:29]} 20.
Qa3 {[%emt 00:01:02] [%clk 00:05:18]} Rab8 {[%emt 00:00:32] [%clk 00:02:07]} 21.
Rad1 {[%emt 00:00:13] [%clk 00:05:15]} Re8 {[%emt 00:00:13] [%clk 00:02:03]} 22.
Bb1 {[%emt 00:00:20] [%clk 00:05:07]} Nh7 {[%emt 00:00:24] [%clk 00:01:49]} 23.
Be3 {[%emt 00:00:59] [%clk 00:04:19]} Nhf8 {[%emt 00:00:20] [%clk 00:01:38]} 24.
Nf1 {[%emt 00:00:56] [%clk 00:03:33]} Ne6 {[%emt 00:00:23] [%clk 00:01:24]} 25.
Nh2 {[%emt 00:00:03] [%clk 00:03:40]} Rbd8 {[%emt 00:00:36] [%clk 00:00:59]} 26.
Nf3 {[%emt 00:00:05] [%clk 00:03:45]} exd4 {[%emt 00:00:41] [%clk 00:00:28]} 27.
cxd4 {[%emt 00:00:02] [%clk 00:03:53]} Nf6 {[%emt 00:00:05] [%clk 00:00:34]} 28.
d5 {[%emt 00:00:23] [%clk 00:03:39]} Nc5 {[%emt 00:00:01] [%clk 00:00:43]} 29.
Bg5 {[%emt 00:01:03] [%clk 00:02:46]} Nfxe4 {[%emt 00:00:01] [%clk 00:00:52]}
30. Bxe4 {[%emt 00:00:11] [%clk 00:02:45]} Nxe4 {[%emt 00:00:02] [%clk
00:01:00]} 31. Bxd8 {[%emt 00:00:09] [%clk 00:02:46]} Qxd8 {[%clk 00:01:08]} 32.
d6 {[%emt 00:00:21] [%clk 00:02:36]} Qd7 {[%emt 00:00:34] [%clk 00:00:43]} 33.
Qb2 {[%emt 00:00:24] [%clk 00:02:24]} c3 {[%emt 00:00:06] [%clk 00:00:47]} 34.
Qxb6 {[%emt 00:00:07] [%clk 00:02:27]} c2 {[%emt 00:00:05] [%clk 00:00:52]} 35.
Rc1 {[%emt 00:00:19] [%clk 00:02:17]} Bd3 {[%emt 00:00:08] [%clk 00:00:54]} 36.
Qd4 {[%emt 00:00:03] [%clk 00:02:24]} 1-0

[Site "Europe Echecs"]

[Event "Championnat d'Europe Rapide"]
[Date "2024.12.07"]
[White "Danov, Lyubomir"]
[Black "Grigorov, Grigor"]
[WhiteElo "2297"]
[BlackElo "2497"]
[Round "6.21"]
[Result "1/2-1/2"]
[TimeControl "900+10"]

1. e4 {[%emt 00:00:02] [%clk 00:15:18]} c6 {[%emt 00:00:03] [%clk 00:15:19]} 2.
d4 {[%emt 00:00:09] [%clk 00:15:17]} d5 {[%emt 00:00:02] [%clk 00:15:27]} 3.
exd5 {[%emt 00:00:09] [%clk 00:15:19]} cxd5 {[%emt 00:00:02] [%clk 00:15:34]} 4.
Bd3 {[%emt 00:00:01] [%clk 00:15:27]} Nc6 {[%emt 00:00:02] [%clk 00:15:43]} 5.
c3 {[%emt 00:00:02] [%clk 00:15:35]} e5 {[%emt 00:00:02] [%clk 00:15:51]} 6.
dxe5 {[%emt 00:00:06] [%clk 00:15:40]} Nxe5 {[%emt 00:00:02] [%clk 00:15:58]} 7.
Nf3 {[%emt 00:00:24] [%clk 00:15:25]} Nxd3+ {[%emt 00:00:03] [%clk 00:16:06]} 8.
Qxd3 {[%emt 00:00:01] [%clk 00:15:34]} Bd6 {[%emt 00:00:01] [%clk 00:16:14]} 9.
O-O {[%emt 00:00:13] [%clk 00:15:32]} Ne7 {[%emt 00:00:02] [%clk 00:16:22]} 10.
Bg5 {[%emt 00:00:18] [%clk 00:15:23]} O-O {[%emt 00:00:04] [%clk 00:16:29]} 11.
Nbd2 {[%emt 00:00:03] [%clk 00:15:30]} Bf5 {[%emt 00:00:43] [%clk 00:15:56]} 12.
Qb5 {[%emt 00:00:19] [%clk 00:15:20]} f6 {[%emt 00:02:24] [%clk 00:13:42]} 13.
Bh4 {[%emt 00:00:12] [%clk 00:15:18]} Qd7 {[%emt 00:00:02] [%clk 00:13:50]} 14.
Qxd7 {[%emt 00:00:17] [%clk 00:15:11]} Bxd7 {[%emt 00:00:03] [%clk 00:13:58]}
15. Bg3 {[%emt 00:00:02] [%clk 00:15:19]} Bc5 {[%emt 00:00:16] [%clk 00:13:52]}
16. Nb3 {[%emt 00:00:22] [%clk 00:15:06]} Bb6 {[%emt 00:00:10] [%clk 00:13:52]}
17. Bd6 {[%emt 00:00:26] [%clk 00:14:51]} Rfe8 {[%emt 00:00:07] [%clk 00:13:55]}
18. Rad1 {[%emt 00:00:55] [%clk 00:14:06]} Bg4 {[%emt 00:02:22] [%clk 00:11:42]}
19. Bxe7 {[%emt 00:01:13] [%clk 00:13:03]} Rxe7 {[%clk 00:11:51]} 20. Rxd5
{[%emt 00:00:03] [%clk 00:13:11]} Re2 {[%emt 00:00:18] [%clk 00:11:43]} 21. Nfd2
{[%emt 00:01:26] [%clk 00:11:55]} Rae8 {[%emt 00:00:35] [%clk 00:11:18]} 22. h3
{[%emt 00:00:26] [%clk 00:11:38]} Be6 {[%emt 00:00:34] [%clk 00:10:53]} 23. Rd3
{[%emt 00:00:06] [%clk 00:11:43]} Bf5 {[%emt 00:01:57] [%clk 00:09:06]} 24. Rd5
{[%emt 00:00:03] [%clk 00:11:50]} Be6 {[%emt 00:00:42] [%clk 00:08:34]} 25. Rd3
{[%emt 00:00:02] [%clk 00:11:59]} Bf5 {[%emt 00:00:22] [%clk 00:08:22]} 26. Rd5
{[%emt 00:00:01] [%clk 00:12:07]} Be6 {[%emt 00:00:26] [%clk 00:07:55]} 1/2-1/2

[Site "Europe Echecs"]

[Event "Championnat d'Europe Rapide"]
[Date "2024.12.07"]
[White "Zajic, Milan"]
[Black "Fromm, Marius"]
[WhiteElo "2392"]
[BlackElo "2459"]
[Round "6.22"]
[Result "1-0"]
[TimeControl "900+10"]

1. e4 {[%emt 00:00:04] [%clk 00:15:19]} c5 {[%clk 00:15:18]} 2. Nf3 {[%clk
00:15:27]} e6 {[%clk 00:15:27]} 3. d4 {[%emt 00:00:01] [%clk 00:15:36]} cxd4
{[%emt 00:00:01] [%clk 00:15:36]} 4. Nxd4 {[%emt 00:00:02] [%clk 00:15:45]} Nf6
{[%emt 00:00:01] [%clk 00:15:44]} 5. Nc3 {[%emt 00:00:01] [%clk 00:15:54]} Nc6
{[%clk 00:15:53]} 6. Nxc6 {[%emt 00:00:14] [%clk 00:15:50]} bxc6 {[%emt
00:00:01] [%clk 00:16:02]} 7. e5 {[%emt 00:00:01] [%clk 00:15:59]} Nd5 {[%emt
00:00:02] [%clk 00:16:10]} 8. Ne4 {[%emt 00:00:01] [%clk 00:16:07]} Bb7 {[%emt
00:00:04] [%clk 00:16:17]} 9. Be2 {[%emt 00:00:13] [%clk 00:16:04]} c5 {[%emt
00:00:04] [%clk 00:16:23]} 10. O-O {[%emt 00:00:04] [%clk 00:16:10]} Qc7 {[%emt
00:00:03] [%clk 00:16:29]} 11. Nd6+ {[%emt 00:00:05] [%clk 00:16:15]} Bxd6
{[%emt 00:00:02] [%clk 00:16:37]} 12. exd6 {[%emt 00:00:02] [%clk 00:16:24]} Qc6
{[%clk 00:16:46]} 13. f3 {[%emt 00:00:13] [%clk 00:16:21]} Qb6 {[%emt 00:00:01]
[%clk 00:16:55]} 14. Kh1 {[%emt 00:01:03] [%clk 00:15:28]} O-O {[%emt 00:00:41]
[%clk 00:16:24]} 15. a3 {[%emt 00:00:25] [%clk 00:15:13]} e5 {[%emt 00:00:11]
[%clk 00:16:23]} 16. Bd3 {[%emt 00:02:11] [%clk 00:13:12]} Rfe8 {[%emt 00:01:31]
[%clk 00:15:02]} 17. Re1 {[%emt 00:02:27]} Re6 {[%clk 00:14:15]} 18. c4 {[%emt
00:00:38] [%clk 00:11:24]} Nf4 {[%emt 00:01:15] [%clk 00:13:10]} 19. Bxf4 {[%emt
00:00:30] [%clk 00:11:04]} exf4 {[%emt 00:00:01] [%clk 00:13:19]} 20. Rxe6
{[%emt 00:00:18] [%clk 00:10:56]} dxe6 {[%emt 00:00:32] [%clk 00:12:57]} 21. Qd2
{[%emt 00:00:20] [%clk 00:10:46]} Rd8 {[%emt 00:00:08] [%clk 00:12:59]} 22. Rd1
{[%emt 00:00:15] [%clk 00:10:40]} e5 {[%emt 00:01:56] [%clk 00:11:14]} 23. b4
{[%emt 00:00:33] [%clk 00:10:16]} g6 {[%emt 00:00:14] [%clk 00:11:11]} 24. Be4
{[%emt 00:00:40] [%clk 00:09:46]} Bc8 {[%emt 00:01:14] [%clk 00:10:07]} 25. Qd5
{[%emt 00:01:29] [%clk 00:08:27]} Be6 {[%emt 00:03:36] [%clk 00:06:40]} 26. Qxe5
{[%emt 00:02:51] [%clk 00:05:47]} Bxc4 {[%emt 00:02:19] [%clk 00:04:30]} 27.
bxc5 {[%emt 00:00:25] [%clk 00:05:33]} Qb3 {[%emt 00:00:01] [%clk 00:04:39]} 28.
Qd4 {[%emt 00:02:23] [%clk 00:03:20]} Be2 {[%emt 00:01:00] [%clk 00:03:49]} 29.
Re1 {[%emt 00:00:39] [%clk 00:02:51]} 1-0

[Site "Europe Echecs"]